[Event "DFMM-LV 2023"]
[Site "Braunfels"]
[Date "2023.06.09"]
[Round "1.44"]
[White "Dietrich, Mareike"]
[Black "Hartung, Katja"]
[Result "0-1"]
[Annotator "TA"]
[ECO "C56"]
[WhiteElo "1771"]
[BlackElo "1944"]
[PlyCount "172"]
[EventDate "2023.06.09"]
[EventType "team-tourn"]
[EventCountry "GER"]
[SourceTitle "playchess.com"]
[Source "ChessBase"]
[SourceQuality "1"]
[TimeControl "40/5400+30:1800+30"]

{[%evp 10,172,43,-24,-9,-5,-1,0,-7,0,0,0,0,-24,-41,-32,-32,-37,-17,-41,0,-77,49,-114,-24,-34,-37,-32,-25,-68,-32,-53,-49,-59,-53,-77,6,-95,-104,-107,0,0,0,0,2,-197,-183,-177,-32,-429,-425,-401,-365,-341,-303,-279,-240,-214,-203,-188,-156,-218,-170,-215,-179,-251,-257,-311,-300,-318,-308,-282,-236,-222,-189,-235,-240,-235,-236,-226,-226,-220,-213,-209,-230,-218,-228,-206,-184,-352,-350,-614,-547,-614,-604,-829,-747,-12819,-12842,-12797,-12798,-12470,-4671,-9291,-2706,-29976,-1218,-29977,-1228,-1265,-1217,-1120,-1079,-1797,-1749,-1591,-1464,-1188,0,-743,0,-367,0,-864,-272,-1097,-917,-2088,-997,-799,-786,-1979,-1691,-1435,-1214,-29951,-29941,-12664,-7224,-4634,-4133,-29961,-29962,-29960,-29959,-5210,-5089,-29958,-29959,-6079,-5855,-29962,-29965,-29981,-29982,-29982,-29983,-29983,-29984,-29984,-29985,-29988,-29984,-29986,-29985]} 1. e4 {[%emt 0:00:02]} e5 {[%emt 0:00:17]} 2. Nf3 {[%emt 0:00:04]} Nc6 {[%emt 0:00:05][%cal Bb8c6,Bc6e5,Be5f3][%mdl 32]} 3. Bc4 {[%emt 0:00:04]} Nf6 {[%emt 0:00:17]} 4. d4 {[%emt 0:00:39]} exd4 {[%emt 0:00:48]} 5. O-O {[%emt 0:00:05]} d6 {[%emt 0:01:56]} 6. Ng5 {[%emt 0:06:19]} ({Better is} 6. Nxd4 $14 Be7 7. Nc3) 6... Ne5 $1 $11 {[%emt 0:01:22] C56: Two Knights: 4 d4 exd4 5 0-0 Nxe4.} 7. Qxd4 {[%emt 0:04:03]} h6 {[%emt 0:02:45] Prevents f4.} 8. Nf3 {[%emt 0:06:44]} Nxf3+ {[%emt 0:09:45] The position is equal.} 9. gxf3 {[%emt 0:00:05]} Bh3 {[%emt 0:00:35]} 10. Re1 {[%emt 0:01:48]} Nd7 {[%emt 0:06:28]} 11. f4 {[%emt 0:04:53]} Qh4 {[%emt 0:03:44]} 12. Qe3 {[%emt 0:02:59] [#]} g5 $1 {[%emt 0:07:29] Strongly threatening ...gxf4.} 13. Qg3 {[%emt 0:10:51][%cal Rf4g5]} Rg8 {[%emt 0:03:08] [#]} 14. Kh1 $146 {[%emt 0:07:35]} ({Predecessor:} 14. Bf1 gxf4 15. Qxg8 Nf6 16. Qh8 Qg4+ 17. Kh1 f3 18. Bxh3 Qxh3 19. Rg1 Ng4 20. Rxg4 Qxg4 {0-1 Harper,B-Blackburne,J GBR-ch London 1868}) 14... O-O-O {[%emt 0:10:05][%cal Od6d5]} 15. Nc3 {[%emt 0:07:10]} (15. Bxf7 $11 Rg7 16. Bd5) 15... Nb6 {[%emt 0:10:37]} (15... Bg4 $1 $17) 16. Bf1 $2 {[%emt 0:03:38]} (16. Qxh4 gxh4 17. Bf1 (17. Bxf7 $2 Rg7 $19) 17... Bxf1 18. Rxf1 Bg7 $15) (16. Bxf7 $14 {stays ahead.} Rg7 17. Bb3) 16... Bg4 {[%emt 0:03:17]} (16... Bxf1 $17 17. Rxf1 Re8) 17. h3 {[%emt 0:04:01]} (17. a4 {is more complex.} a5 18. Be3 Nd7 19. Bg2) 17... Qxg3 {[%emt 0:07:15]} 18. fxg3 {[%emt 0:00:01]} Bd7 {[%emt 0:00:49]} 19. Bd2 {[%emt 0:02:50]} Bc6 {[%emt 0:01:06]} 20. Kh2 {[%emt 0:00:25]} Bg7 {[%emt 0:02:24]} 21. Rad1 {[%emt 0:02:10]} Rde8 {[%emt 0:06:46]} 22. Bd3 {[%emt 0:00:54]} Bd4 {[%emt 0:01:27]} (22... Bxc3 $17 23. bxc3 (23. Bxc3 gxf4 24. g4 Nd7 $15) 23... f6) 23. b3 {[%emt 0:04:34]} (23. Nb5 $11 Bxb5 24. Bxb5) 23... gxf4 $17 {[%emt 0:00:39]} 24. gxf4 {[%emt 0:00:08] [#]} f5 {[%emt 0:00:38] Black has more active pieces.} 25. Nb5 $11 {[%emt 0:04:02]} Bf2 {[%emt 0:04:26]} 26. Nxa7+ {[%emt 0:01:55]} Kd7 {[%emt 0:00:29]} 27. Rf1 {[%emt 0:05:39]} (27. Nxc6 $1 $11 {and White is okay.} Bg3+ 28. Kh1 Bxe1 29. Rxe1 Kxc6 30. e5) 27... Bg3+ $19 {[%emt 0:00:19]} 28. Kh1 {[%emt 0:00:04] Threatens to win with Nxc6.} fxe4 {[%emt 0:02:01]} ({Black should play} 28... Bxe4+ $19 29. Bxe4 Rxe4) 29. Nxc6 $4 {[%emt 0:00:07][%mdl 8192]} ({Only move:} 29. Be2 $1 $15) 29... exd3 {[%emt 0:01:31]} ({And not} 29... bxc6 30. Be2 $11) 30. Nd4 {[%emt 0:00:32] Prevents Re2.} dxc2 {[%emt 0:00:28]} ({But not} 30... c5 $2 31. Nf3 dxc2 32. Rc1 $19) 31. Rc1 {[%emt 0:01:15]} Re4 {[%emt 0:03:31]} 32. Nf3 {[%emt 0:09:30]} Bxf4 {[%emt 0:01:57]} 33. Rxc2 {[%emt 0:01:05]} Bxd2 {[%emt 0:00:55]} 34. Rxd2 {[%emt 0:00:17]} Rge8 {[%emt 0:01:07]} 35. Rg1 {[%emt 0:02:58]} (35. Nh2 $17) 35... Re3 {[%emt 0:00:40]} 36. Rf1 {[%emt 0:02:23]} c6 {[%emt 0:01:07]} 37. h4 {[%emt 0:01:40]} (37. Kh2 $142) 37... Nd5 {[%emt 0:00:29]} 38. Nd4 {[%emt 0:01:32]} Rh3+ {[%emt 0:03:10]} 39. Rh2 {[%emt 0:00:09]} Rxh2+ {[%emt 0:00:09]} 40. Kxh2 {[%emt 0:00:01][%mdl 4096] Endgame KRN-KRN} Re4 {[%emt 0:00:25]} 41. Nf5 {[%emt 0:30:52]} Ne3 {[%emt 0:31:20]} 42. Nxe3 {[%emt 0:04:05]} Rxe3 {[%emt 0:00:17] KR-KR} 43. Rf6 {[%emt 0:00:07]} h5 {[%emt 0:01:28]} 44. Rh6 {[%emt 0:00:54] [#]} Re5 {[%emt 0:00:00]} 45. Rh7+ {[%emt 0:00:00] [#]} Kc8 $1 {[%emt 0:00:00]} 46. Rh8+ {[%emt 0:00:00]} Kc7 {[%emt 0:00:00]} 47. Rh7+ {[%emt 0:00:00]} Kb6 {[%emt 0:00:00]} 48. Kg3 {[%emt 0:00:00]} Ka6 {[%emt 0:00:00]} 49. Rg7 $2 {[%emt 0:00:00]} (49. Kf4 {was worth a try.}) 49... Re3+ {[%emt 0:00:00]} 50. Kg2 $2 {[%emt 0:00:00]} (50. Kf4 Rh3 51. Rh7 Rxh4+ 52. Kg3) 50... Re2+ {[%emt 0:00:00]} 51. Kg3 {[%emt 0:00:00]} Rxa2 {[%emt 0:00:00]} 52. Rg6 {[%emt 0:00:00]} Ra3 {[%emt 0:00:00]} 53. Rxd6 {[%emt 0:00:00]} Rxb3+ {[%emt 0:00:00]} 54. Kf4 {[%emt 0:00:00]} Rb5 {[%emt 0:00:00]} 55. Rg6 {[%emt 0:00:00]} Kb6 {[%emt 0:00:00]} (55... Rd5 $142 56. Ke4 Ra5) 56. Rg5 {[%emt 0:00:00]} Kc7 {[%emt 0:00:00]} (56... Rd5 $142 57. Rg8 Kc5) 57. Kf3 {[%emt 0:00:00]} Kd6 {[%emt 0:00:00]} (57... Rxg5 $142 58. hxg5 Kd6 59. Kf4 Ke6 60. Kf3 Kf5 61. Ke2 b5 62. Kf2 Kxg5 63. Ke3 h4 64. Kf3 h3 65. Kg3 b4 66. Kxh3 b3 67. Kg2 Kf4 68. Kf2 b2 69. Ke2 b1=Q 70. Kd2 Ke4 71. Kc3 c5 72. Kd2 Qb2+ 73. Kd1 Kf3 74. Ke1 Qe2#) 58. Kf4 {[%emt 0:00:00]} Ke6 {[%emt 0:00:00]} (58... Rxg5 $142 59. Kxg5 b5 60. Kf5 Kd5 61. Kf4 b4 62. Ke3 Kc4 63. Kf4 b3 64. Kg5 b2 65. Kxh5 b1=Q 66. Kg4 Kd4 67. h5 Qe4+ 68. Kg5 Ke5 69. Kh6 Qg2 70. Kh7 Kf6 71. h6 Kf7 72. Kh8 Qg8#) 59. Rg6+ {[%emt 0:00:00]} Kf7 {[%emt 0:00:00]} 60. Rh6 {[%emt 0:00:00]} Kg7 {[%emt 0:00:00]} 61. Rd6 {[%emt 0:00:00]} Rd5 {[%emt 0:00:00]} 62. Re6 {[%emt 0:00:00]} Kf7 {[%emt 0:00:00]} 63. Rh6 {[%emt 0:00:00]} Kg7 {[%emt 0:01:32]} 64. Re6 {[%emt 0:00:00]} Rb5 {[%emt 0:00:09]} (64... Kf8 $142 {And now ...Kf7 would win.} 65. Ke3 Rb5) 65. Rd6 $1 {[%emt 0:00:00]} Kf7 $2 {[%emt 0:02:12] Against Re6} ({Don't go for} 65... Rd5 $2 66. Re6 $19) (65... Kf8 66. Rd7 b6) 66. Rh6 $1 {[%emt 0:00:00]} Ke7 {[%emt 0:00:11]} 67. Rg6 $2 {[%emt 0:00:00]} (67. Ke3) 67... Kd7 {[%emt 0:01:32]} 68. Rh6 {[%emt 0:00:00]} Rc5 {[%emt 0:00:36]} (68... Kc7 $142 69. Rf6 Kb6) 69. Rh7+ {[%emt 0:00:00]} Kc8 {[%emt 0:00:06]} 70. Rh8+ {[%emt 0:00:00]} Kc7 {[%emt 0:00:21]} 71. Rh7+ {[%emt 0:00:00]} Kb6 {[%emt 0:00:02] ...Ka6 is the strong threat.} 72. Rh6 {[%emt 0:00:00]} Kb5 {[%emt 0:00:04]} 73. Rg6 {[%emt 0:00:00]} b6 {[%emt 0:00:10][%cal Bb7b6,Bb6b5,Bb5b4,Bb4b3,Bb3b2][%mdl 32]} 74. Rg5 {[%emt 0:00:00]} Rd5 {[%emt 0:00:43]} 75. Rg6 {[%emt 0:00:00]} Kc5 {[%emt 0:00:03]} 76. Re6 {[%emt 0:00:00]} b5 {[%emt 0:00:12]} 77. Re1 {[%emt 0:00:00]} b4 {[%emt 0:00:11] ( -> ...b3)} 78. Rc1+ {[%emt 0:00:00]} Kb5 {[%emt 0:00:01]} 79. Rb1 {[%emt 0:00:00]} Rc5 {[%emt 0:00:17]} 80. Rb3 {[%emt 0:00:00]} Ka4 {[%emt 0:00:09] Black mates.} 81. Re3 {[%emt 0:00:00]} b3 {[%emt 0:00:13]} 82. Re4+ {[%emt 0:00:00]} Ka3 {[%emt 0:00:02]} 83. Re3 {[%emt 0:00:00]} Ka2 {[%emt 0:00:08]} 84. Re8 {[%emt 0:00:00]} b2 {[%emt 0:00:24]} 85. Ra8+ {[%emt 0:00:00]} Kb1 {[%emt 0:00:03]} 86. Rb8 {[%emt 0:00:00]} Kc1 {[%emt 0:00:08] Weighted Error Value: White=0.91/Black=0.51} 0-1

[Event "DFMM-LV 2023"]
[Site "Braunfels"]
[Date "2023.06.09"]
[Round "1.45"]
[White "Pflug, Tanja"]
[Black "Kohl, Natalie"]
[Result "1-0"]
[Annotator "TA"]
[ECO "A47"]
[WhiteElo "1994"]
[BlackElo "1504"]
[PlyCount "83"]
[EventDate "2023.06.09"]
[EventType "team-tourn"]
[EventCountry "GER"]
[SourceTitle "playchess.com"]
[Source "ChessBase"]
[SourceQuality "1"]
[TimeControl "40/5400+30:1800+30"]

{[%evp 13,83,-22,10,0,0,0,30,22,27,24,23,0,27,21,21,15,19,20,27,0,0,-21,194,218,210,210,252,252,243,238,220,226,283,283,283,277,350,343,347,346,353,331,386,386,374,359,404,391,419,409,453,462,478,477,651,643,673,660,653,653,637,629,686,685,837,775,774,774,790,766,753,743]} 1. d4 {[%emt 0:00:03]} Nf6 {[%emt 0:00:20]} 2. Bf4 {[%emt 0:00:08]} e6 {[%emt 0:00:31]} 3. e3 {[%emt 0:00:06]} b6 {[%emt 0:01:10]} 4. Nd2 {[%emt 0:00:09]} Bb7 {[%emt 0:00:44]} 5. Ngf3 {[%emt 0:00:20]} c5 {[%emt 0:01:44]} 6. c3 {[%emt 0:00:13]} Be7 {[%emt 0:02:07]} 7. Bd3 {[%emt 0:00:27]} Nc6 {[%emt 0:03:59]} 8. Nc4 {[%emt 0:01:35] A47: 1 d4 Nf6 2 Nf3 b6: Torre, London and Colle Systems.} (8. Ne5 {seems wilder.} O-O 9. O-O Nd5 10. Bg3) 8... d6 {[%emt 0:11:55]} 9. a4 {[%emt 0:01:46]} cxd4 {[%emt 0:04:55]} 10. exd4 {[%emt 0:00:44] White has an edge.} O-O {[%emt 0:07:10]} 11. O-O {[%emt 0:00:28]} Rc8 {[%emt 0:08:06]} 12. Qe2 {[%emt 0:02:32]} Na5 {[%emt 0:08:02]} 13. Nxa5 {[%emt 0:02:00]} bxa5 {[%emt 0:01:44]} 14. Rfe1 {[%emt 0:00:41] [#]} Re8 $146 {[%emt 0:05:42]} ({Predecessor:} 14... Qb6 15. Nd2 Rfe8 16. Nc4 Qd8 17. Rad1 Ba6 18. Bc1 Qc7 19. Ne3 Bxd3 20. Qxd3 d5 {½-½ Kirk,E (2442)-Rudd,J (2318) GBR-ch 108th 2022 (2)}) 15. Rad1 {[%emt 0:04:11]} Nd5 {[%emt 0:02:15]} 16. Qe4 {[%emt 0:08:49]} (16. Bg3 {simplifies} Rb8 17. h3 g6 18. Nd2) 16... g6 {[%emt 0:09:55] Hoping for ...Bc6.} 17. Bh6 {[%emt 0:04:09] [#] And now c4 would win.} Nxc3 {[%emt 0:12:03] Black cannot hold the game after this.} 18. Qxb7 $18 {[%emt 0:01:33]} Nxd1 {[%emt 0:01:47]} 19. Rxd1 {[%emt 0:00:09] Black is weak on the light squares} Qb6 {[%emt 0:00:59]} 20. Qxb6 {[%emt 0:07:15]} axb6 {[%emt 0:00:09]} 21. Bb5 {[%emt 0:00:05] Repels d5} Red8 {[%emt 0:02:44]} 22. d5 {[%emt 0:02:58]} Rc5 {[%emt 0:03:15]} 23. dxe6 {[%emt 0:02:03]} fxe6 {[%emt 0:01:11]} 24. Be3 {[%emt 0:00:39]} Rc2 {[%emt 0:01:16]} 25. Nd4 {[%emt 0:03:09]} ({Don't do} 25. Bxb6 Rb8) 25... Rxb2 {[%emt 0:04:17]} 26. Nxe6 {[%emt 0:00:56]} Rc8 {[%emt 0:00:36]} 27. Bxb6 {[%emt 0:01:46] A strong pair of Bishops.} Rbc2 {[%emt 0:00:35]} 28. Be3 {[%emt 0:00:26] Repels Rc1} (28. Bxa5 Rc1 29. Rf1 Kf7 $18) 28... Kf7 {[%emt 0:00:59]} 29. Nd4 {[%emt 0:00:59]} R2c7 {[%emt 0:00:44]} 30. Nb3 {[%emt 0:00:35]} d5 {[%emt 0:01:29]} 31. Rxd5 {[%emt 0:02:47]} ({But not} 31. Nxa5 Rc2 32. Nb3 R2c3 $18) 31... Bb4 {[%emt 0:00:03]} 32. g3 {[%emt 0:01:04] White is clearly winning.} Ke6 {[%emt 0:01:07]} 33. Rd1 {[%emt 0:00:36]} Rc3 {[%emt 0:00:28]} 34. Bd7+ {[%emt 0:00:26]} Ke7 {[%emt 0:00:12]} 35. Bg5+ {[%emt 0:00:44]} Kf7 {[%emt 0:00:31]} 36. Bxc8 {[%emt 0:00:30]} Rxc8 {[%emt 0:00:16]} 37. Rd5 {[%emt 0:00:43]} Ke6 {[%emt 0:00:41]} 38. Rb5 {[%emt 0:00:13]} Be1 {[%emt 0:02:32]} 39. Bd2 {[%emt 0:00:29]} Bxd2 {[%emt 0:00:35]} 40. Nxd2 {[%emt 0:00:08]} Rc1+ {[%emt 0:00:21]} 41. Kg2 {[%emt 0:30:09]} Rc2 {[%emt 0:30:42]} 42. Nb3 {[%emt 0:00:05] Weighted Error Value: White=0.04 (flawless) /Black=0.41} 1-0

[Event "DFMM-LV 2023"]
[Site "Braunfels"]
[Date "2023.06.09"]
[Round "1.46"]
[White "Loos, Tilda"]
[Black "Eue, Vicky"]
[Result "0-1"]
[Annotator "NA RC COMBH"]
[ECO "A01"]
[WhiteElo "1401"]
[BlackElo "1682"]
[PlyCount "58"]
[EventDate "2023.06.09"]
[EventType "team-tourn"]
[EventCountry "GER"]
[SourceTitle "playchess.com"]
[Source "ChessBase"]
[SourceQuality "1"]
[TimeControl "40/5400+30:1800+30"]

1. b3 {[%emt 0:01:37]} Nc6 {[%emt 0:01:49]} 2. Bb2 {[%emt 0:00:11]} e5 {[%emt 0:00:38]} 3. e3 {[%emt 0:00:23]} a6 {[%emt 0:00:40]} 4. Ne2 {[%emt 0:00:31]} d5 {[%emt 0:00:55]} 5. d3 {[%emt 0:00:58]} Nf6 {[%emt 0:01:33]} 6. Nd2 {[%emt 0:00:39]} Bf5 {[%emt 0:02:56]} 7. g3 {[%emt 0:00:33]} Qd7 {[%emt 0:01:17]} 8. Bg2 {[%emt 0:01:20]} Bh3 {[%emt 0:04:54]} 9. O-O {[%emt 0:02:12]} Bxg2 {[%emt 0:01:52]} 10. Kxg2 {[%emt 0:00:10]} Bd6 {[%emt 0:01:35]} 11. a3 {[%emt 0:02:02]} h5 {[%emt 0:00:51]} 12. h4 {[%emt 0:01:13]} Ng4 {[%emt 0:00:43]} 13. c4 {[%emt 0:00:42]} Ne7 {[%emt 0:03:10]} 14. b4 {[%emt 0:01:10]} Nf5 {[%emt 0:00:54]} 15. Kg1 {[%emt 0:01:02]} Ngxe3 {[%emt 0:12:50]} 16. fxe3 {[%emt 0:00:43]} Nxe3 {[%emt 0:00:26]} 17. Qb3 {[%emt 0:01:14]} Nxf1 {[%emt 0:00:29]} 18. Rxf1 {[%emt 0:00:16]} Qg4 {[%emt 0:01:17]} 19. Rf2 {[%emt 0:02:33]} dxc4 {[%emt 0:05:44]} 20. Nxc4 {[%emt 0:01:49]} O-O {[%emt 0:02:02]} 21. Bxe5 {[%emt 0:00:52]} Rae8 {[%emt 0:07:29]} 22. Bxd6 {[%emt 0:00:40]} cxd6 {[%emt 0:00:56]} 23. Nf4 {[%emt 0:01:22]} Qxg3+ {[%emt 0:00:32]} 24. Kf1 {[%emt 0:02:12]} Qxh4 {[%emt 0:00:48]} 25. Kg2 {[%emt 0:12:22]} Re1 {[%emt 0:03:17]} 26. Nh3 {[%emt 0:11:23]} Qg4+ {[%emt 0:02:59]} 27. Kh2 {[%emt 0:00:50]} Rfe8 {[%emt 0:09:28]} 28. Nxd6 {[%emt 0:09:55]} Rh1+ {[%emt 0:00:20]} 29. Kxh1 {[%emt 0:00:57]} Qxh3+ {[%emt 0:00:04]} 0-1

[Event "DFMM-LV 2023"]
[Site "Braunfels"]
[Date "2023.06.09"]
[Round "2.1"]
[White "Agrest, Inna"]
[Black "Roessler, Ulrike"]
[Result "1/2-1/2"]
[Annotator "TA"]
[ECO "B99"]
[WhiteElo "2287"]
[BlackElo "2176"]
[PlyCount "55"]
[EventDate "2023.06.09"]
[EventType "team-tourn"]
[EventCountry "GER"]
[SourceTitle "playchess.com"]
[Source "ChessBase"]
[SourceQuality "1"]
[TimeControl "40/5400+30:1800+30"]

{[%evp 22,55,50,46,64,42,43,37,40,29,42,10,5,4,29,21,21,31,5,11,7,18,15,0,0,0,0,-43,-40,-56,-56,-60,0,0,0,-84]} 1. e4 {[%emt 0:00:03]} c5 {[%emt 0:00:54]} 2. Nf3 {[%emt 0:00:06]} d6 {[%emt 0:00:04]} 3. d4 {[%emt 0:00:06]} cxd4 {[%emt 0:00:04]} 4. Nxd4 {[%emt 0:00:02]} Nf6 {[%emt 0:00:07]} 5. Nc3 {[%emt 0:00:05]} a6 {[%emt 0:00:04]} 6. Bg5 {[%emt 0:00:30]} e6 {[%emt 0:00:06]} 7. f4 {[%emt 0:00:48]} Be7 {[%emt 0:01:24]} 8. Qf3 {[%emt 0:00:00]} Qc7 {[%emt 0:00:25]} 9. O-O-O {[%emt 0:03:07]} Nbd7 {[%emt 0:00:54]} 10. g4 {[%emt 0:07:29][%cal Bg2g4,Bg4g5][%mdl 32]} h6 {[%emt 0:01:00]} 11. Bxf6 {[%emt 0:00:45]} Bxf6 {[%emt 0:00:06]} 12. h4 {[%emt 0:00:23]} Nb6 {[%emt 0:01:53] seems to push 12...Qb6 aside. B99: Sicilian Najdorf: 6 Bg5 e6 7 f4 Be7 8 Qf3 Qc7 9 0-0-0 Nbd7.} 13. g5 {[%emt 0:08:52]} Bxd4 {[%emt 0:00:31]} 14. Rxd4 {[%emt 0:00:04]} Qc5 {[%emt 0:00:10] White is slightly better.} 15. Rd1 {[%emt 0:17:36]} Bd7 {[%emt 0:04:01]} 16. Qd3 {[%emt 0:24:24]} hxg5 {[%emt 0:03:28]} (16... Na4 {seems wilder.} 17. Nxa4 Bxa4 18. Qd2 hxg5 19. fxg5 g6) 17. fxg5 {[%emt 0:02:28]} Rxh4 {[%emt 0:02:41][%mdl 64] [#] Remove Defender, Decoy} 18. Rxh4 {[%emt 0:01:45]} Qxg5+ {[%emt 0:00:04]} 19. Kb1 {[%emt 0:00:10] Rh8+ would kill now.} Qxh4 {[%emt 0:00:04] [#]} 20. Qd4 $146 {[%emt 0:09:11]} ({Reject} 20. Qxd6 Bc6 21. Qe5 g6 $15) ({Predecessor:} 20. Qxd6 Qd8 21. Be2 Nc8 22. Qd4 Kf8 23. Qxd7 Qxd7 24. Rxd7 b5 25. e5 Ne7 26. Ne4 {1-0 Khamdamova,A (2120)-Rosh,J (2325) Titled Tuesday intern op 14th Feb Early blitz 2023 (2)}) 20... Qd8 {[%emt 0:14:11]} 21. Qxg7 {[%emt 0:00:10][%cal Of1a6]} ({Don't play} 21. Qxd6 Na4 22. Be2 Nxc3+ 23. bxc3 Bc6 $15) 21... Bc6 {[%emt 0:00:22]} 22. Be2 {[%emt 0:08:19][%mdl 1024] White has compensation.} Qe7 {[%emt 0:03:37]} 23. Rf1 {[%emt 0:09:16]} Nd7 {[%emt 0:03:32]} 24. Bh5 {[%emt 0:02:31][%cal Rf1f7]} Ne5 {[%emt 0:05:36]} 25. Qh8+ {[%emt 0:00:25]} Qf8 {[%emt 0:00:05]} 26. Qf6 {[%emt 0:00:04]} Qe7 {[%emt 0:00:25]} (26... Kd7 $5 {[%cal Rf8h8]} 27. Qf4 Qe7 $17) 27. Qh8+ {[%emt 0:01:05]} Qf8 {[%emt 0:00:06]} 28. Qf6 {[%emt 0:00:02] Weighted Error Value: White=0.11 (very precise) /Black=0.08 (flawless)} 1/2-1/2

[Event "DFMM-LV 2023"]
[Site "Braunfels"]
[Date "2023.06.09"]
[Round "2.2"]
[White "Korenova, Martina"]
[Black "Voicu-Jagodzinsky, Carmen"]
[Result "1/2-1/2"]
[Annotator "TA"]
[ECO "C01"]
[WhiteElo "2151"]
[BlackElo "2297"]
[PlyCount "77"]
[EventDate "2023.06.09"]
[EventType "team-tourn"]
[EventCountry "GER"]
[SourceTitle "playchess.com"]
[Source "ChessBase"]
[SourceQuality "1"]
[TimeControl "40/5400+30:1800+30"]

{[%evp 13,77,18,19,15,36,31,35,31,58,41,57,35,45,8,116,50,60,8,8,7,59,0,-6,-16,-22,-8,-14,-3,10,0,16,9,6,10,10,-77,-59,-97,11,-106,0,0,0,0,0,-85,-85,-96,-82,-147,-138,-124,-135,-357,-366,-342,-301,-291,-281,-333,0,-255,0,-296,0,-248]} 1. e4 {[%emt 0:00:02]} e6 {[%emt 0:00:18]} 2. d4 {[%emt 0:01:01]} d5 {[%emt 0:00:05]} 3. exd5 {[%emt 0:00:23]} exd5 {[%emt 0:00:05]} 4. Bd3 {[%emt 0:00:11]} Nf6 {[%emt 0:03:10]} 5. Nf3 {[%emt 0:03:28]} Bd6 {[%emt 0:02:01]} 6. Qe2+ {[%emt 0:00:26]} Qe7 {[%emt 0:06:24] 6...Be6 is a critical line.} 7. Qxe7+ {[%emt 0:00:53]} Kxe7 {[%emt 0:03:28]} 8. O-O {[%emt 0:05:18] C01: French: Exchange Variation.} h6 {[%emt 0:03:28]} 9. Re1+ {[%emt 0:00:25] [#]} Kf8 $146 {[%emt 0:00:42]} ({Predecessor:} 9... Be6 10. Nh4 Kd8 11. Nf5 Bxf5 12. Bxf5 Nc6 13. c3 Re8 14. Rxe8+ Kxe8 15. Be3 Ne7 {½-½ Delgado Ramirez,N (2613)-Cori,J (2659) American Continental 14th 2018 (6)}) 10. Nc3 {[%emt 0:04:12] White is slightly better.} a6 {[%emt 0:04:13] Prevents Nb5} 11. Ne5 {[%emt 0:06:44]} g5 {[%emt 0:12:47][%cal Bg7g5,Bg5g4][%mdl 32]} 12. f4 {[%emt 0:06:11]} g4 {[%emt 0:01:27]} 13. Ne2 {[%emt 0:02:29]} c5 {[%emt 0:00:53]} (13... Nc6 $11) 14. c3 {[%emt 0:04:11] White is more active.} (14. b3 $16) 14... Nc6 $14 {[%emt 0:02:10]} 15. Be3 {[%emt 0:05:58]} ({White should play} 15. Nxc6 $14 bxc6 16. dxc5 Bxc5+ 17. Nd4) 15... c4 $11 {[%emt 0:01:35]} 16. Bc2 {[%emt 0:00:34]} Ne7 {[%emt 0:00:31]} (16... h5 $1 $11) 17. b3 {[%emt 0:06:37]} (17. f5 $14) 17... Bf5 {[%emt 0:01:48]} 18. Bxf5 {[%emt 0:01:31]} Nxf5 {[%emt 0:00:05]} 19. Bf2 {[%emt 0:02:55]} cxb3 {[%emt 0:05:06]} 20. axb3 {[%emt 0:00:06]} Rc8 {[%emt 0:01:45]} 21. c4 {[%emt 0:04:52]} Bb4 {[%emt 0:12:52]} 22. Red1 {[%emt 0:03:35]} Kg7 {[%emt 0:03:32]} 23. c5 {[%emt 0:04:55]} Rhe8 {[%emt 0:05:20]} 24. Kf1 {[%emt 0:03:22]} (24. Ra4 $11 a5 25. Be1) 24... Ne4 $17 {[%emt 0:02:12]} 25. Ra2 {[%emt 0:00:50]} a5 {[%emt 0:10:23]} (25... h5 $17 26. Nd3 Bc3) 26. Nd3 {[%emt 0:14:22]} (26. Nxg4 $11 {keeps the balance.} h5 27. Ne5) 26... Nc3 {[%emt 0:05:01]} ({Black should try} 26... h5 $17 {White must now prevent ...h4.} 27. Kg1 Bc3) 27. Nxc3 $11 {[%emt 0:00:10]} Bxc3 {[%emt 0:00:02]} 28. Ne5 {[%emt 0:03:28]} h5 {[%emt 0:02:47]} 29. Rc2 {[%emt 0:04:06]} (29. Rd3 $11 {remains equal.} Bb4 30. h3) 29... Bb4 $17 {[%emt 0:01:50]} 30. Nd3 {[%emt 0:00:06]} Re4 {[%emt 0:00:49]} 31. Nxb4 {[%emt 0:04:50]} (31. g3 $142) 31... axb4 {[%emt 0:00:03]} 32. g3 {[%emt 0:00:05]} Ra8 {[%emt 0:00:38][%cal Oe4e3]} 33. Re2 $2 {[%emt 0:00:52] [#] Inhibits Re3.} (33. Rb2 $17 {was necessary.}) 33... Rxe2 $1 $19 {[%emt 0:03:45]} 34. Kxe2 {[%emt 0:00:03] KRB-KRN} Ra2+ {[%emt 0:00:36]} 35. Rd2 {[%emt 0:00:05]} Ra1 {[%emt 0:00:22]} 36. Rd1 {[%emt 0:00:11] Repels Rh1} Ra2+ {[%emt 0:00:34]} 37. Rd2 {[%emt 0:00:04]} Ra1 {[%emt 0:00:41] Threatens to win with ...Rh1.} 38. Rd1 {[%emt 0:00:10] Against Rh1} Ra2+ {[%emt 0:01:01]} 39. Rd2 {[%emt 0:10:19] Weighted Error Value: White=0.37/Black=0.54} 1/2-1/2